bitfinex/quotes_BTCUSD_20250115
["timestamp","ask_amount","ask_price","bid_price","bid_amount"]
[1736980915928,0.000855,99798.0,99797.0,0.5181293]
[1736980930489,0.000855,99798.0,99797.0,0.6181293]
[1736980931275,0.000855,99798.0,99797.0,0.6237693]
[1736980933169,0.000855,99798.0,99797.0,1.02248189]
[1736980934686,0.000855,99798.0,99797.0,0.6237693]
[1736980935711,0.000855,99798.0,99797.0,0.7698693]
[1736980938184,0.50321066,99809.0,99808.0,0.350384]
[1736980938457,0.50371356,99809.0,99808.0,0.47761092]
[1736980940156,0.50371356,99809.0,99808.0,0.48061092]
[1736980940389,0.50371356,99809.0,99808.0,0.47761092]
[1736980940563,0.50371356,99809.0,99808.0,0.47861092]
[1736980940820,0.50371356,99809.0,99808.0,0.48461092]
[1736980941662,0.50371356,99809.0,99808.0,0.47861092]
[1736980941842,0.50371356,99809.0,99808.0,0.48661092]
[1736980942088,0.50371356,99809.0,99808.0,0.48561092]
[1736980942289,0.50371356,99809.0,99808.0,0.48761092]
[1736980946644,0.50371356,99809.0,99808.0,0.50359354]
[1736980947800,0.50371356,99809.0,99808.0,0.60359354]
[1736980948015,0.50371356,99809.0,99808.0,0.63431846]
[1736980948819,0.50371356,99809.0,99808.0,1.03250029]
[1736980949382,0.50371356,99809.0,99808.0,0.63431846]
[1736980953274,0.50371356,99809.0,99808.0,1.03226072]
[1736980954438,0.50371356,99809.0,99808.0,1.07806072]
[1736980955782,0.50371356,99809.0,99808.0,0.68011846]
[1736980957636,0.50371356,99809.0,99808.0,1.07787075]
[1736980959172,0.47357576,99809.0,99808.0,0.68011846]
[1736980962268,0.43349976,99809.0,99808.0,0.68011846]
[1736980962894,0.41346176,99809.0,99808.0,0.68011846]
[1736980963106,0.39342376,99809.0,99808.0,0.68011846]
[1736980963791,0.35334776,99809.0,99808.0,0.67211846]
[1736980964073,0.35334776,99809.0,99808.0,0.67911846]
[1736980964274,0.35334776,99809.0,99808.0,0.68211846]
[1736980965301,0.35420246,99809.0,99808.0,0.68211846]
[1736980966996,0.35420246,99809.0,99808.0,0.65911846]
[1736980967437,0.35420246,99809.0,99808.0,0.61331846]
[1736980971003,0.35420246,99809.0,99808.0,0.58259354]
[1736980972364,0.35420246,99809.0,99808.0,0.88236676]
[1736980973179,0.35420246,99809.0,99808.0,0.61326271]
[1736980976130,0.35420246,99809.0,99808.0,1.011015]
[1736980976923,0.35420246,99809.0,99808.0,1.0128105]
[1736980977269,0.35420246,99809.0,99808.0,0.61505821]
[1736980978730,0.35420246,99809.0,99808.0,0.62069821]
[1736980985089,0.35420246,99809.0,99808.0,1.01800133]
[1736980987218,0.35420246,99809.0,99808.0,0.62069821]
[1736980987469,0.29421453,99809.0,99808.0,0.62069821]
[1736981020351,0.37301453,99809.0,99808.0,0.51505821]
[1736981020583,0.37301453,99809.0,99808.0,0.52069821]
[1736981020970,0.37301453,99809.0,99808.0,0.51505821]
[1736981022294,0.37301453,99809.0,99808.0,0.91322321]
[1736981022975,0.37301453,99809.0,99808.0,0.51505821]
[1736981024557,0.37301453,99809.0,99808.0,0.5133922]
[1736981024767,0.37301453,99809.0,99808.0,0.50711706]
[1736981026098,0.37301453,99809.0,99808.0,0.53480942]
[1736981026286,0.37301453,99809.0,99808.0,0.5331319]
[1736981026431,0.37301453,99809.0,99808.0,0.53021324]
[1736981028934,0.37301453,99809.0,99808.0,0.52688583]
[1736981030745,0.37301453,99809.0,99808.0,0.48679283]
[1736981033376,0.29421453,99809.0,99808.0,0.48679283]
[1736981037005,0.29421453,99809.0,99808.0,0.88495783]
[1736981040800,0.37001453,99809.0,99808.0,0.88495783]
[1736981041160,0.37001453,99809.0,99808.0,0.48679283]
[1736981042084,0.37001453,99809.0,99808.0,0.45612366]
[1736981042829,0.37001453,99809.0,99808.0,0.4868365]
[1736981043202,0.37001453,99809.0,99808.0,0.45612366]
[1736981044705,0.36501453,99809.0,99808.0,0.45612366]
[1736981050759,0.36501453,99809.0,99808.0,0.45331067]
[1736981053548,0.36501453,99809.0,99808.0,0.47631067]
[1736981055524,0.36501453,99809.0,99808.0,0.46731067]
[1736981055934,0.36501453,99809.0,99808.0,0.47531067]
[1736981056141,0.36501453,99809.0,99808.0,0.47231067]
[1736981056299,0.36501453,99809.0,99808.0,0.46631067]
[1736981056514,0.36501453,99809.0,99808.0,0.47331067]
[1736981057090,0.36501453,99809.0,99808.0,0.47131067]
[1736981057290,0.36501453,99809.0,99808.0,0.47231067]
[1736981062022,0.36501453,99809.0,99808.0,0.44931067]
[1736981063611,0.36501453,99809.0,99808.0,0.71885258]
[1736981064457,0.36501453,99809.0,99808.0,0.44931067]
[1736981065065,0.36501453,99809.0,99808.0,0.71885258]
[1736981065927,0.36501453,99809.0,99808.0,0.44931067]
[1736981066313,0.36501453,99809.0,99808.0,0.28000504]
[1736981066873,0.36501453,99809.0,99808.0,0.48038904]
[1736981070742,0.28921453,99809.0,99808.0,0.48038904]
[1736981078329,0.28921453,99809.0,99808.0,0.51111396]
[1736981089102,0.28894586,99809.0,99808.0,0.51111396]
[1736981091520,0.28894586,99809.0,99808.0,0.48038904]
[1736981096352,0.36954586,99809.0,99808.0,0.48038904]
[1736981098011,0.36954586,99809.0,99808.0,0.75021362]
[1736981102247,0.36954586,99809.0,99808.0,0.6459867]
[1736981104438,0.36954586,99809.0,99808.0,0.37616212]
[1736981105146,0.39254586,99809.0,99808.0,0.37616212]
[1736981108295,0.36954586,99809.0,99808.0,0.37616212]
[1736981116366,0.36954586,99809.0,99808.0,0.22616212]
[1736981116573,0.36954586,99809.0,99808.0,0.22516212]
[1736981117178,0.36954586,99809.0,99808.0,0.2021795]
[1736981117587,0.36954586,99809.0,99808.0,0.2091795]
[1736981117793,0.36954586,99809.0,99808.0,0.38295951]
[1736981117969,0.36954586,99809.0,99808.0,0.38695951]
[1736981118373,0.36954586,99809.0,99808.0,0.33700778]
[1736981118819,0.36954586,99809.0,99808.0,0.34100778]
[1736981119251,0.36954586,99809.0,99808.0,0.33700778]
[1736981120454,0.36954586,99809.0,99808.0,0.2021795]
[1736981121067,0.36954586,99809.0,99808.0,0.2051795]
[1736981121255,0.36954586,99809.0,99808.0,0.2021795]
[1736981121256,0.37054586,99809.0,99808.0,0.2021795]
[1736981121633,0.37054586,99809.0,99808.0,0.2041795]
[1736981125459,0.37054586,99809.0,99808.0,0.0037955]
[1736981128586,0.41714586,99809.0,99808.0,0.0037955]
[1736981129530,0.84177278,99809.0,99808.0,0.0037955]
[1736981130553,0.86477278,99809.0,99808.0,0.0037955]
[1736981130727,1.0689997,99809.0,99808.0,0.0037955]
[1736981131066,1.3189997,99809.0,99808.0,0.0037955]
[1736981131276,1.21477278,99809.0,99808.0,0.0037955]
[1736981131470,1.21349713,99809.0,99808.0,0.0017955]
[1736981131684,0.300402,99799.0,99798.0,0.00179487]
[1736981131885,0.58755181,99799.0,99798.0,0.00179487]
[1736981132852,0.58755181,99799.0,99798.0,0.00279487]
[1736981133937,0.58855181,99799.0,99798.0,0.00279487]
[1736981134251,0.90895181,99799.0,99798.0,0.00279487]
[1736981134613,1.00895181,99799.0,99798.0,0.00279487]
[1736981134788,1.15895181,99799.0,99798.0,0.00279487]
[1736981136294,1.15895181,99799.0,99798.0,0.00179487]
[1736981136534,1.15895181,99799.0,99798.0,0.00679487]
[1736981136717,1.15795181,99799.0,99798.0,0.00679487]
[1736981136914,1.15795181,99799.0,99798.0,0.00179487]
[1736981137124,1.15795181,99799.0,99798.0,0.00279487]
[1736981137581,0.2,99798.0,99755.0,0.2014888]
[1736981137785,0.3204,99777.0,99755.0,0.2014888]
[1736981137997,0.278065,99768.0,99755.0,0.2014888]
[1736981138171,0.278065,99768.0,99755.0,0.0009998]
[1736981139198,0.278065,99768.0,99767.0,0.00184579]
[1736981139579,0.278065,99768.0,99767.0,0.00284579]
[1736981141469,0.279065,99768.0,99767.0,0.00284579]
[1736981142192,0.278065,99768.0,99767.0,0.00284579]
[1736981142396,0.278065,99768.0,99767.0,0.00184579]
[1736981142606,0.278065,99768.0,99767.0,0.00284579]
[1736981142826,0.278065,99768.0,99767.0,0.00184579]
[1736981143032,0.279065,99768.0,99767.0,0.00184579]
[1736981143430,0.70369192,99768.0,99767.0,0.00184579]
[1736981144058,0.70469192,99768.0,99767.0,0.00184579]
[1736981144502,0.70369192,99768.0,99767.0,0.00184579]
[1736981144858,0.70669192,99768.0,99767.0,0.00184579]
[1736981155845,0.62909192,99768.0,99767.0,0.00184579]
[1736981156735,0.3244,99768.0,99767.0,0.00184579]
[1736981156946,0.004,99768.0,99767.0,0.12774579]
[1736981157705,0.001,99768.0,99767.0,0.16938458]
[1736981158130,0.002,99768.0,99767.0,0.16938458]
[1736981159013,0.002,99768.0,99767.0,0.4236115]
[1736981159187,0.002,99768.0,99767.0,0.40697271]
[1736981159762,0.002,99768.0,99767.0,0.40497271]
[1736981159934,0.0012529,99795.0,99772.0,0.023]
[1736981160189,0.0012529,99795.0,99788.0,0.0808]
[1736981160364,0.00125275,99796.0,99788.0,0.0808]
[1736981160716,0.00125275,99795.0,99788.0,0.0808]
[1736981160912,0.00125275,99795.0,99789.0,0.200422]
[1736981161961,0.00225275,99795.0,99789.0,0.200422]
[1736981162159,0.00225275,99795.0,99788.0,0.0808]
[1736981162368,0.00125275,99794.0,99789.0,0.200422]
[1736981162809,0.00125275,99794.0,99788.0,0.0808]
[1736981163683,0.00125275,99794.0,99789.0,0.023]
[1736981163887,0.002,99795.0,99792.0,0.0451]
[1736981164306,0.001,99794.0,99792.0,0.0451]
[1736981164477,0.001,99794.0,99792.0,0.245516]
[1736981164710,0.0008551,99797.0,99792.0,0.245516]
[1736981164943,0.002,99794.0,99784.0,0.200432]
[1736981165143,0.00117578,99793.0,99784.0,0.200432]
[1736981165572,0.00117578,99793.0,99781.0,0.09228316]
[1736981165982,0.20159178,99793.0,99779.0,0.0451]
[1736981166336,0.20159178,99793.0,99777.0,0.15]
[1736981166951,0.20159178,99793.0,99784.0,0.002]
[1736981167586,0.200416,99792.0,99784.0,0.002]
[1736981167710,0.00117578,99791.0,99784.0,0.002]
[1736981168113,0.00117578,99791.0,99784.0,0.00206405]
[1736981168315,0.00117578,99791.0,99784.0,6.405e-05]
[1736981168511,0.20042,99790.0,99784.0,6.405e-05]
[1736981168721,0.00117578,99789.0,99784.0,6.405e-05]
[1736981170254,0.00217578,99789.0,99784.0,6.405e-05]
[1736981170490,0.200424,99788.0,99784.0,6.405e-05]
[1736981170700,0.200428,99786.0,99784.0,6.405e-05]
[1736981170870,0.00117578,99785.0,99784.0,6.405e-05]
[1736981171227,0.07917578,99785.0,99784.0,6.405e-05]
[1736981172702,0.08017578,99785.0,99784.0,6.405e-05]
[1736981173627,0.08317578,99785.0,99784.0,6.405e-05]
[1736981174594,0.08317578,99785.0,99784.0,0.00185976]
[1736981176316,0.40357578,99785.0,99784.0,0.00185976]
[1736981176539,0.4024,99785.0,99784.0,0.00185976]
[1736981178679,0.50662692,99785.0,99784.0,0.00185976]
[1736981182636,0.50362692,99785.0,99784.0,0.00185976]
[1736981183048,0.50262692,99785.0,99784.0,0.00185976]
[1736981184574,0.50262692,99785.0,99784.0,0.00685976]
[1736981196304,0.11957062,99806.0,99805.0,0.3]
[1736981196536,0.20669959,99811.0,99810.0,0.1]
[1736981196769,0.17496966,99811.0,99810.0,0.37864]
[1736981196962,0.17496966,99811.0,99810.0,0.46325757]
[1736981197135,0.27020475,99820.0,99818.0,0.550364]
[1736981197338,0.000855,99867.0,99827.0,0.450346]
[1736981197562,0.000855,99845.0,99844.0,0.200312]
[1736981197765,0.000855,99845.0,99844.0,0.223312]
[1736981197961,0.00135821,99845.0,99844.0,0.223312]
[1736981198205,0.00135821,99845.0,99844.0,0.63395063]
[1736981198407,0.00135821,99845.0,99844.0,0.73395063]
[1736981198621,0.00135821,99845.0,99844.0,0.78145063]
[1736981198800,0.000855,99867.0,99848.0,0.273]
[1736981198930,0.00052092,99849.0,99848.0,0.43363863]
[1736981199431,0.00052092,99849.0,99848.0,0.53363863]
[1736981199584,0.000855,99867.0,99862.0,0.473276]
[1736981199790,0.000855,99867.0,99862.0,0.63391463]
[1736981200748,0.000855,99867.0,99862.0,0.63591463]
[1736981201293,0.0009154,99863.0,99862.0,0.63391463]
[1736981201487,0.0009154,99863.0,99862.0,0.63691463]
[1736981201814,0.0009154,99863.0,99862.0,0.64591463]
[1736981201996,0.0009154,99863.0,99862.0,0.63691463]
[1736981202355,0.0009154,99863.0,99862.0,0.58750292]
[1736981202561,0.0009154,99863.0,99862.0,0.58050292]
[1736981202948,0.0009154,99863.0,99862.0,0.58650292]
[1736981203555,0.0009154,99863.0,99862.0,0.56350292]
[1736981203712,0.0009154,99863.0,99862.0,0.58850292]
[1736981204116,0.0009154,99863.0,99862.0,0.57750292]
[1736981204512,0.0009154,99863.0,99862.0,0.43950292]
[1736981204735,0.0009154,99863.0,99862.0,0.43050292]
[1736981205122,0.0009154,99863.0,99862.0,0.43950292]
[1736981205483,0.0009154,99863.0,99862.0,0.65237885]
[1736981205605,0.0009154,99863.0,99862.0,0.66037885]
[1736981205809,0.0009154,99863.0,99862.0,0.64937885]
[1736981206004,0.0009154,99863.0,99862.0,0.22187593]
[1736981206228,0.0009154,99863.0,99862.0,0.01]
[1736981206718,0.0009154,99863.0,99862.0,0.308276]
[1736981206957,0.0009154,99863.0,99862.0,0.310276]
[1736981207485,0.0009154,99863.0,99862.0,0.300276]
[1736981207845,0.0009154,99863.0,99862.0,0.309276]
[1736981208057,0.0009154,99863.0,99862.0,0.324276]
[1736981208262,0.0009154,99863.0,99862.0,0.330276]
[1736981208666,0.0009154,99863.0,99862.0,0.59406124]
[1736981208869,0.0009154,99863.0,99862.0,0.59906124]
[1736981209307,0.000855,99867.0,99862.0,0.335284]
[1736981209481,0.00072456,99865.0,99863.0,0.1]
[1736981209727,0.00072456,99865.0,99862.0,0.010008]
[1736981210232,0.00072456,99865.0,99862.0,0.011008]
[1736981210464,0.00072456,99865.0,99862.0,0.010008]
[1736981210618,0.00072456,99865.0,99862.0,0.004008]
[1736981210823,0.00117578,99864.0,99863.0,0.001]
[1736981211679,0.20144778,99864.0,99863.0,0.001]
[1736981212257,0.20144778,99864.0,99863.0,0.007]
[1736981212434,0.20144778,99864.0,99863.0,0.001]
[1736981212632,0.20144778,99864.0,99858.0,0.08855538]
[1736981212833,0.200282,99860.0,99851.0,0.08855538]
[1736981213003,0.00117578,99859.0,99853.0,6.04e-05]
[1736981213208,0.00117578,99859.0,99854.0,6.405e-05]
[1736981213408,0.00117578,99859.0,99854.0,0.08861943]
[1736981213601,0.20145878,99859.0,99854.0,0.08861943]
[1736981214169,0.20145878,99859.0,99854.0,6.405e-05]
[1736981214926,0.20145878,99859.0,99854.0,0.00406405]
[1736981215127,0.20145878,99859.0,99854.0,6.405e-05]
[1736981215561,0.20245878,99859.0,99854.0,6.405e-05]
[1736981215987,0.20145878,99859.0,99854.0,6.405e-05]
[1736981216185,0.20345878,99859.0,99854.0,6.405e-05]
[1736981216818,0.200285,99858.0,99854.0,6.405e-05]
[1736981216983,0.20029,99855.0,99854.0,6.405e-05]
[1736981217185,0.00117578,99855.0,99854.0,6.405e-05]
[1736981219536,0.00217578,99855.0,99854.0,6.405e-05]
[1736981219955,0.00117578,99855.0,99854.0,6.405e-05]
[1736981220349,0.00317578,99855.0,99854.0,6.405e-05]
[1736981221013,0.00117578,99855.0,99854.0,6.405e-05]
[1736981221165,0.31372223,99855.0,99854.0,6.405e-05]
[1736981221349,0.31254645,99855.0,99854.0,6.405e-05]
[1736981223075,0.39064645,99855.0,99854.0,6.405e-05]
[1736981223326,0.39164645,99855.0,99854.0,6.405e-05]
[1736981224295,0.39064645,99855.0,99854.0,6.405e-05]
[1736981224497,0.39164645,99855.0,99854.0,6.405e-05]
[1736981224897,0.39064645,99855.0,99854.0,6.405e-05]
[1736981225740,0.39164645,99855.0,99854.0,6.405e-05]
[1736981226186,0.39064645,99855.0,99854.0,6.405e-05]
[1736981226363,0.39164645,99855.0,99854.0,6.405e-05]
[1736981226976,0.39064645,99855.0,99854.0,6.405e-05]
[1736981229122,0.39164645,99855.0,99854.0,6.405e-05]
[1736981229343,0.59587337,99855.0,99854.0,6.405e-05]
[1736981231563,0.59587337,99855.0,99854.0,0.00106405]
[1736981232355,0.59487337,99855.0,99854.0,6.405e-05]
[1736981232579,0.59587337,99855.0,99854.0,6.405e-05]
[1736981232916,0.59487337,99855.0,99854.0,6.405e-05]
[1736981233181,0.60524653,99855.0,99854.0,6.405e-05]
[1736981233335,0.60624653,99855.0,99854.0,6.405e-05]
[1736981235428,0.60624653,99855.0,99854.0,0.00185871]
[1736981242453,0.59587337,99855.0,99854.0,0.00185871]
[1736981243491,0.59487337,99855.0,99854.0,0.00185871]
[1736981243662,0.59587337,99855.0,99854.0,0.00185871]
[1736981244603,0.59687337,99855.0,99854.0,0.00185871]
[1736981244807,0.74587337,99855.0,99854.0,0.00185871]
[1736981245698,0.74887337,99855.0,99854.0,0.00185871]
[1736981253521,0.75463337,99855.0,99854.0,0.00185871]
[1736981254159,0.74887337,99855.0,99854.0,0.00185871]
[1736981254361,0.75463337,99855.0,99854.0,0.00185871]
[1736981259417,0.74887337,99855.0,99854.0,0.00185871]
[1736981259619,0.65463337,99855.0,99854.0,0.00185871]
[1736981260089,0.75463337,99855.0,99854.0,0.00185871]
[1736981261332,0.78589508,99855.0,99854.0,0.00185871]
[1736981261679,0.75463337,99855.0,99854.0,0.00185871]
[1736981262296,0.65463337,99855.0,99854.0,0.00185871]
[1736981263602,0.75463337,99855.0,99854.0,0.00185871]
[1736981263805,0.65463337,99855.0,99854.0,0.00185871]
[1736981264086,0.75463337,99855.0,99854.0,0.00185871]
[1736981264767,0.65463337,99855.0,99854.0,0.00185871]
[1736981265623,0.75463337,99855.0,99854.0,0.00185871]
[1736981267367,0.65463337,99855.0,99854.0,0.00185871]
[1736981267544,0.75463337,99855.0,99854.0,0.00185871]
[1736981268526,0.785936,99855.0,99854.0,0.00185871]
[1736981268736,0.75463337,99855.0,99854.0,0.00185871]
[1736981269914,0.78593598,99855.0,99854.0,0.00185871]
[1736981274735,0.78017598,99855.0,99854.0,0.00185871]
[1736981276904,0.74887337,99855.0,99854.0,0.00185871]
[1736981278255,0.78017467,99855.0,99854.0,0.00185871]
[1736981279143,0.74887337,99855.0,99854.0,0.00185871]
[1736981280063,0.7801746,99855.0,99854.0,0.00185871]
[1736981281399,0.74887337,99855.0,99854.0,0.00185871]
[1736981282015,0.75455337,99855.0,99854.0,0.00185871]
[1736981282421,0.78585462,99855.0,99854.0,0.00185871]
[1736981282636,0.78585433,99855.0,99854.0,0.00185871]
[1736981283942,0.78017433,99855.0,99854.0,0.00185871]
[1736981285117,0.74887337,99855.0,99854.0,0.00185871]
[1736981290511,0.78017607,99855.0,99854.0,0.00185871]
[1736981290818,0.74887337,99855.0,99854.0,0.00185871]
[1736981293637,0.78017543,99855.0,99854.0,0.02485871]
[1736981300293,0.78017543,99855.0,99854.0,0.00185871]
[1736981303614,0.83007543,99855.0,99854.0,0.00185871]
[1736981304571,0.82907543,99855.0,99854.0,0.02485871]
[1736981305047,0.82607543,99855.0,99854.0,0.02485871]
[1736981305290,0.82707543,99855.0,99854.0,0.02485871]
[1736981305557,0.82707543,99855.0,99854.0,0.02785871]
[1736981305791,0.82607543,99855.0,99854.0,0.02485871]
[1736981306244,0.82607543,99855.0,99854.0,0.02685871]
[1736981308558,0.82607543,99855.0,99854.0,0.00385871]
[1736981313719,0.59477337,99855.0,99854.0,0.00385871]
[1736981314619,0.60041337,99855.0,99854.0,0.00385871]
[1736981317049,0.88571337,99855.0,99854.0,0.00385871]
[1736981320021,0.88571337,99855.0,99854.0,0.00185871]
[1736981321005,0.88571337,99855.0,99854.0,0.00385871]
[1736981321205,0.88571337,99855.0,99854.0,0.00185871]
[1736981321496,0.88571337,99855.0,99854.0,0.00285871]
[1736981321726,0.88571337,99855.0,99854.0,0.00185871]
[1736981322125,0.88671337,99855.0,99854.0,0.00285871]
[1736981323498,0.9180022,99855.0,99854.0,0.00285871]
[1736981324114,0.3299,99850.0,99849.0,0.00179487]
[1736981324318,0.46541575,99850.0,99849.0,0.00179487]
[1736981325185,0.49603112,99850.0,99849.0,0.00179487]
[1736981327311,0.49603112,99850.0,99849.0,0.00479487]
[1736981327505,0.49603112,99850.0,99849.0,0.00179487]
[1736981327930,0.49703112,99850.0,99849.0,0.00179487]
[1736981328365,0.49803112,99850.0,99849.0,0.00179487]
[1736981328572,0.49703112,99850.0,99849.0,0.00179487]
[1736981328783,0.49803112,99850.0,99849.0,0.00179487]
[1736981328984,0.81843112,99850.0,99849.0,0.00179487]
[1736981331170,0.77203112,99850.0,99849.0,0.00179487]
[1736981331380,0.74638229,99850.0,99849.0,0.00179487]
[1736981332276,0.74538229,99850.0,99849.0,0.00179487]
[1736981332707,0.74638229,99850.0,99849.0,0.00179487]
[1736981332850,0.74074229,99850.0,99849.0,0.00179487]
[1736981333054,0.66318229,99850.0,99849.0,0.00179487]
[1736981333687,0.66218229,99850.0,99849.0,0.00179487]
[1736981333911,0.66118229,99850.0,99849.0,0.00179487]
[1736981334110,0.66118229,99850.0,99849.0,0.00479487]
[1736981335763,0.74368229,99850.0,99849.0,0.00479487]
[1736981345744,0.73804229,99850.0,99849.0,0.00479487]
[1736981345952,0.74368229,99850.0,99849.0,0.00479487]
[1736981352956,0.89368229,99850.0,99849.0,0.00479487]
[1736981353287,0.99368229,99850.0,99849.0,0.00479487]
[1736981357251,0.89368229,99850.0,99849.0,0.00479487]
[1736981357411,0.99368229,99850.0,99849.0,0.00479487]
[1736981361866,1.02495514,99850.0,99849.0,0.00479487]
[1736981365660,1.07105514,99850.0,99849.0,0.00479487]
[1736981371436,1.06541514,99850.0,99849.0,0.00479487]
[1736981371735,1.07105514,99850.0,99849.0,0.00479487]
[1736981377309,1.07105514,99850.0,99849.0,0.00979487]
[1736981381376,1.07105514,99850.0,99849.0,0.00679487]
[1736981381812,1.07205514,99850.0,99849.0,0.00779487]
[1736981382636,1.08775023,99850.0,99849.0,0.00779487]
[1736981406846,1.08211023,99850.0,99849.0,0.00779487]
[1736981407046,1.08775023,99850.0,99849.0,0.00779487]
[1736981409172,1.08775023,99850.0,99849.0,0.00769487]
[1736981410243,1.08211023,99850.0,99849.0,0.00769487]
[1736981410414,1.08775023,99850.0,99849.0,0.00769487]
[1736981429093,1.08765023,99850.0,99849.0,0.00769487]
[1736981429698,1.08201023,99850.0,99849.0,0.00769487]
[1736981429918,1.08678502,99850.0,99849.0,0.00769487]
[1736981430830,1.08764002,99850.0,99849.0,0.00769487]
[1736981445366,1.05702465,99850.0,99849.0,0.00769487]
[1736981462259,0.25,99849.0,99833.0,0.08855538]
[1736981462481,0.277732,99834.0,99833.0,0.08855538]
[1736981462687,0.38195892,99834.0,99833.0,0.08855538]
[1736981462890,0.18162692,99834.0,99829.0,0.08855538]
[1736981463096,0.350337,99832.0,99829.0,0.08855538]
[1736981463296,0.20034,99830.0,99829.0,0.08855538]
[1736981463516,0.20034,99830.0,99827.0,0.13283308]
[1736981463517,0.3204,99829.0,99827.0,0.08855538]
[1736981463672,0.30457092,99828.0,99827.0,0.08855538]
[1736981463881,0.30440072,99828.0,99827.0,0.08855538]
[1736981464291,0.350348,99826.0,99825.0,0.08855538]
[1736981464500,0.45457492,99826.0,99825.0,0.08855538]
[1736981464999,0.45457492,99826.0,99820.0,0.17711077]
[1736981465000,0.65492292,99826.0,99823.0,0.08855538]
[1736981465202,0.200352,99824.0,99823.0,0.08855538]
[1736981465405,0.30457892,99824.0,99823.0,0.08855538]
[1736981465613,0.30457892,99824.0,99822.0,0.08855538]
[1736981465843,0.18162692,99823.0,99822.0,0.08855538]
[1736981466872,0.18162692,99823.0,99821.0,0.08855538]
[1736981467048,0.200356,99822.0,99821.0,0.08855538]
[1736981467258,0.30458292,99822.0,99821.0,0.08855538]
[1736981467840,0.30458292,99822.0,99820.0,0.08855538]
[1736981468046,0.10422692,99821.0,99820.0,0.08855538]
[1736981468815,0.20036,99820.0,99819.0,0.08855538]
[1736981468954,0.30458692,99820.0,99819.0,0.08855538]
[1736981469678,0.30458692,99820.0,99803.0,0.26669611]
[1736981469679,0.520772,99814.0,99813.0,0.08855538]
[1736981469880,0.62499892,99814.0,99813.0,0.08855538]
[1736981470086,0.6250491,99814.0,99813.0,0.08855538]
[1736981470628,0.6250491,99814.0,99812.0,0.08855538]
[1736981470849,0.10422692,99813.0,99812.0,0.08855538]
[1736981471313,0.10422692,99813.0,99812.0,0.04313438]
[1736981471688,0.200386,99807.0,99806.0,0.13283308]
[1736981472745,0.400772,99807.0,99803.0,0.13283308]
[1736981472959,0.400772,99807.0,99806.0,0.001]
[1736981474354,0.50499892,99807.0,99806.0,0.001]
[1736981474562,0.200398,99801.0,99800.0,0.16783308]
[1736981474769,0.30462492,99801.0,99800.0,0.16783308]
[1736981474921,0.30462492,99801.0,99800.0,0.035]
[1736981475719,0.62502492,99801.0,99800.0,0.035]
[1736981478349,0.70342492,99801.0,99800.0,0.035]
[1736981478688,0.70242492,99801.0,99800.0,0.035]
[1736981478885,0.70442492,99801.0,99800.0,0.035]
[1736981479140,0.70642492,99801.0,99800.0,0.035]
[1736981480431,0.70642492,99801.0,99800.0,0.03679634]
[1736981480856,0.70442492,99801.0,99800.0,0.03679634]
[1736981481063,0.70242492,99801.0,99800.0,0.03679634]
[1736981481278,0.70442492,99801.0,99800.0,0.03679634]
[1736981481485,0.70642492,99801.0,99800.0,0.03679634]
[1736981481685,0.70442492,99801.0,99800.0,0.03679634]
[1736981481890,0.71006492,99801.0,99800.0,0.03679634]
[1736981482099,0.71406492,99801.0,99800.0,0.03679634]
[1736981482415,0.71206492,99801.0,99800.0,0.03679634]
[1736981482558,0.71506492,99801.0,99800.0,0.03679634]
[1736981483382,0.86506492,99801.0,99800.0,0.03679634]
[1736981483603,0.86106492,99801.0,99800.0,0.03679634]
[1736981483940,0.86506492,99801.0,99800.0,0.03679634]
[1736981484078,0.86106492,99801.0,99800.0,0.03679634]
[1736981484487,0.86506492,99801.0,99800.0,0.03679634]
[1736981484687,0.86206492,99801.0,99800.0,0.03679634]
[1736981485110,0.86206492,99801.0,99800.0,0.04379634]
[1736981486395,0.96629184,99801.0,99800.0,0.04379634]
[1736981486594,0.96229184,99801.0,99800.0,0.03879634]
[1736981487053,0.96329184,99801.0,99800.0,0.03879634]
[1736981487254,0.85806492,99801.0,99800.0,0.03879634]
[1736981487451,0.85806492,99801.0,99800.0,0.03679634]
[1736981487711,0.85906492,99801.0,99800.0,0.03679634]
[1736981487867,0.85806492,99801.0,99800.0,0.03679634]
[1736981488512,0.85906492,99801.0,99800.0,0.03679634]
[1736981489841,0.86106492,99801.0,99800.0,0.03679634]
[1736981495090,0.96106492,99801.0,99800.0,0.03679634]
[1736981496200,0.86106492,99801.0,99800.0,0.03679634]
[1736981498182,0.86106492,99801.0,99800.0,0.01574572]
[1736981507032,1.00766492,99801.0,99800.0,7.2e-07]
[1736981507260,0.93889614,99801.0,99800.0,7.2e-07]
[1736981507463,1.03889614,99801.0,99800.0,7.2e-07]
[1736981510075,1.03889614,99801.0,99784.0,0.00179571]
[1736981510076,0.1,99796.0,99784.0,0.00179571]
[1736981510276,0.53765692,99785.0,99784.0,0.00179571]
[1736981511392,0.53765692,99785.0,99784.0,0.00579571]
[1736981514366,0.53765692,99785.0,99784.0,0.00679571]
[1736981514570,0.86369692,99785.0,99784.0,0.00679571]
[1736981515191,0.86369692,99785.0,99784.0,0.00179571]
[1736981515360,0.85805692,99785.0,99784.0,0.00379571]
[1736981515567,0.86369692,99785.0,99784.0,0.00379571]
[1736981516994,0.89498333,99785.0,99784.0,0.00379571]
[1736981517209,0.89498333,99785.0,99784.0,0.00179571]
[1736981517376,0.89498333,99785.0,99784.0,0.00279571]
[1736981518018,0.9051999,99785.0,99784.0,0.00279571]
[1736981518740,0.9514999,99785.0,99784.0,0.00279571]
[1736981521070,0.6310999,99785.0,99784.0,0.00279571]
[1736981522226,0.6310999,99785.0,99784.0,0.00279571]
[1736981523481,0.6468057,99785.0,99784.0,0.00279571]
[1736981533329,0.6468057,99785.0,99784.0,0.00179571]
[1736981534904,0.6005057,99785.0,99784.0,0.00179571]
[1736981547197,0.6489057,99785.0,99784.0,0.00179571]
[1736981549133,0.6499057,99785.0,99784.0,0.00179571]
[1736981549484,0.6489057,99785.0,99784.0,0.00179571]
[1736981549898,0.6499057,99785.0,99784.0,0.00179571]
[1736981551078,0.6509057,99785.0,99784.0,0.00179571]
[1736981552886,0.6509057,99785.0,99784.0,7.1e-07]
[1736981555163,0.40093,99768.0,99765.0,0.00592477]
[1736981555377,0.200469,99766.0,99765.0,0.00592477]
[1736981555580,0.30469592,99766.0,99765.0,0.00592477]
[1736981555757,0.30469592,99766.0,99760.0,0.13283308]
[1736981555993,0.10422692,99765.0,99760.0,0.13283308]
[1736981556451,0.10422692,99765.0,99759.0,0.13283308]
[1736981556659,0.10422692,99765.0,99760.0,0.00050321]
[1736981556862,0.200479,99761.0,99760.0,0.00050321]
[1736981557072,0.31034592,99761.0,99760.0,0.00050321]
[1736981558974,0.31234592,99761.0,99760.0,0.00050321]
[1736981559357,0.31434592,99761.0,99760.0,0.00050321]
[1736981564955,0.31434592,99761.0,99760.0,0.00229997]
[1736981565578,0.31434592,99761.0,99760.0,0.13513305]
[1736981566203,0.31434592,99761.0,99760.0,0.00229997]
[1736981577886,0.39084592,99761.0,99760.0,0.00229997]